bitfinex/quotes_SOLUSD_20241110
["timestamp","ask_amount","ask_price","bid_price","bid_amount"]
[1731274895037,0.1,206.4,206.31,53.40311046]
[1731274895323,0.1,206.42,206.31,53.40311046]
[1731274895324,36.63861046,206.42,206.31,53.40311046]
[1731274895514,0.2,206.4,206.31,53.40311046]
[1731274896028,36.63861046,206.42,206.31,53.40311046]
[1731274896322,0.1,206.37,206.31,16.9645]
[1731274896520,0.1,206.38,206.31,16.9645]
[1731274896718,36.53861046,206.39,206.31,16.9645]
[1731274896941,0.2,206.45,206.38,36.43861046]
[1731274897105,0.1,206.49,206.43,36.43861046]
[1731274897307,0.1,206.48,206.41,36.43861046]
[1731274897609,0.2,206.48,206.41,36.43861046]
[1731274898009,0.2,206.48,206.39,48.55151046]
[1731274898321,36.43861046,206.4,206.33,12.1161]
[1731274898626,36.53861046,206.44,206.34,36.43861046]
[1731274898804,36.53861046,206.44,206.36,36.43861046]
[1731274899006,0.2,206.42,206.34,36.43861046]
[1731274899208,0.2,206.42,206.35,16.9614]
[1731274899421,0.2,206.38,206.35,16.9614]
[1731274899725,0.1,206.38,206.35,16.9614]
[1731274899914,36.63861046,206.4,206.35,16.9614]
[1731274900111,0.2,206.38,206.35,16.9614]
[1731274900324,0.2,206.38,206.35,12.1153]
[1731274900630,36.63861046,206.38,206.35,12.1153]
[1731274900824,36.63861046,206.38,206.29,36.43861046]
[1731274901131,36.63861046,206.38,206.31,4.847]
[1731274901310,0.1,206.35,206.31,4.847]
[1731274902331,36.63861046,206.38,206.3,12.1182]
[1731274902516,0.2,206.38,206.3,12.1182]
[1731274902835,0.1,206.35,206.3,12.1182]
[1731274903010,0.1,206.36,206.3,12.1182]
[1731274903622,36.63861046,206.38,206.3,12.1182]
[1731274904419,0.1,206.36,206.3,16.9655]
[1731274904836,0.1,206.35,206.3,16.9655]
[1731274905720,0.1,206.31,206.3,16.9655]
[1731274906023,0.1,206.33,206.3,16.9655]
[1731274906414,0.1,206.31,206.3,12.1182]
[1731274906747,0.1,206.26,206.25,12.1209]
[1731274907413,0.1,206.3,206.25,16.9693]
[1731274908641,0.1,206.28,206.25,16.9693]
[1731274909241,0.1,206.28,206.25,12.1209]
[1731274909242,0.1,206.26,206.25,12.1209]
[1731274909624,0.1,206.26,206.15,24.2535]
[1731274909625,0.1,206.21,206.16,4.8506]
[1731274909832,0.1,206.25,206.18,36.43861046]
[1731274910022,0.1,206.27,206.2,36.43861046]
[1731274910438,0.1,206.29,206.22,36.43861046]
[1731274910740,6.2843,206.34,206.21,12.1235]
[1731274910741,0.1,206.27,206.21,12.1235]
[1731274911041,36.53861046,206.28,206.21,12.1235]
[1731274911042,0.1,206.29,206.21,48.56211046]
[1731274911434,0.1,206.32,206.23,36.43861046]
[1731274911742,0.2,206.32,206.25,36.43861046]
[1731274912433,0.2,206.34,206.27,36.43861046]
[1731274912748,36.43861046,206.35,206.29,36.43861046]
[1731274912929,0.1,206.36,206.29,36.43861046]
[1731274913419,0.1,206.36,206.26,17.93787998]
[1731274913620,0.1,206.33,206.26,53.40741046]
[1731274914541,0.1,206.34,206.28,36.43861046]
[1731274914738,0.1,206.38,206.32,36.43861046]
[1731274914945,0.1,206.37,206.32,36.43861046]
[1731274915326,0.1,206.38,206.32,36.43861046]
[1731274916237,0.1,206.4,206.27,0.96900683]
[1731274916422,0.2,206.43,206.37,16.9597]
[1731274916637,0.1,206.45,206.38,36.43861046]
[1731274916942,0.1,206.46,206.38,36.43861046]
[1731274917138,0.1,206.43,206.37,16.9597]
[1731274917348,0.1,206.45,206.38,36.43861046]
[1731274917838,0.2,206.45,206.38,36.43861046]
[1731274918442,0.2,206.45,206.4,36.43861046]
[1731274918443,0.1,206.45,206.4,36.43861046]
[1731274918830,0.1,206.45,206.39,16.958]
[1731274919326,0.1,206.47,206.4,36.43861046]
[1731274919639,0.2,206.45,206.39,16.958]
[1731274921235,0.1,206.4,206.39,12.1129]
[1731274921430,0.1,206.39,206.37,4.8455]
[1731274921647,0.1,206.38,206.37,4.8455]
[1731274921978,0.2,206.36,206.34,12.1157]
[1731274922131,36.63861046,206.36,206.34,12.1157]
[1731274922332,0.1,206.29,206.28,12.1192]
[1731274922651,0.1,206.29,206.24,16.9704]
[1731274922825,0.1,206.31,206.24,16.9704]
[1731274922826,0.2,206.31,206.25,36.43861046]
[1731274923030,0.1,206.29,206.25,36.43861046]
[1731274923539,0.1,206.29,206.24,12.1217]
[1731274923733,0.1,206.31,206.24,12.1217]
[1731274923734,0.1,206.25,206.24,12.1217]
[1731274924127,0.1,206.25,206.2,16.9737]
[1731274924329,0.1,206.21,206.2,16.9737]
[1731274924731,0.1,206.23,206.2,12.1241]
[1731274924928,0.1,206.22,206.2,12.1241]
[1731274925633,0.1,206.21,206.2,12.1241]
[1731274926340,0.1,206.19,206.18,4.8501]
[1731274926544,0.2,206.21,206.18,4.8501]
[1731274926852,0.1,206.24,206.17,36.43861046]
[1731274927033,0.1,206.26,206.21,36.43861046]
[1731274927232,0.1,206.29,206.23,36.43861046]
[1731274927442,0.1,206.28,206.23,36.43861046]
[1731274927759,0.1,206.28,206.15,5.05815668]
[1731274927760,0.1,206.24,206.19,36.43861046]
[1731274927925,0.2,206.27,206.19,36.43861046]
[1731274928130,0.1,206.29,206.21,36.43861046]
[1731274928335,0.2,206.3,206.23,36.43861046]
[1731274928937,0.1,206.35,206.27,36.43861046]
[1731274929141,0.1,206.31,206.25,36.43861046]
[1731274929547,0.1,206.3,206.24,16.9704]
[1731274929946,0.1,206.3,206.24,41.2139]
[1731274930260,0.1,206.31,206.24,41.2139]
[1731274931065,0.2,206.27,206.24,16.9704]
[1731274931241,0.1,206.25,206.24,16.9704]
[1731274931440,0.1,206.2,206.18,12.1248]
[1731274931839,0.2,206.2,206.18,12.1248]
[1731274932040,0.2,206.2,206.13,12.128]
[1731274932041,0.2,206.15,206.13,12.128]
[1731274932250,36.63861046,206.15,206.13,12.128]
[1731274933040,33.38701245,206.31,206.3,0.1]
[1731274933356,36.63861046,206.55,206.32,21.7378]
[1731274933545,3.59284915,206.54,206.46,36.43861046]
[1731274933744,36.43861046,206.51,206.32,21.6378]
[1731274933935,3.59284915,206.53,206.32,21.6378]
[1731274933936,3.59332438,206.5,206.32,21.6378]
[1731274934135,0.1,206.53,206.3,36.53861046]
[1731274934136,0.1,206.51,206.3,36.43861046]
[1731274934542,0.1,206.53,206.31,0.1]
[1731274934752,0.1,206.53,206.31,23.776884]
[1731274934950,4.9421,206.53,206.32,16.9638]
[1731274935153,36.43861046,206.51,206.42,36.43861046]
[1731274935962,23.776884,206.5,206.42,36.43861046]
[1731274936455,56.43861046,206.49,206.4,36.43861046]
[1731274936763,56.43861046,206.49,206.37,12.1137]
[1731274936764,23.776884,206.46,206.38,36.43861046]
[1731274937057,23.776884,206.44,206.37,16.9593]
[1731274937656,23.776884,206.46,206.38,36.43861046]
[1731274938344,24.8437,206.45,206.38,36.43861046]
[1731274938554,60.21549446,206.4,206.32,36.43861046]
[1731274938865,23.776884,206.42,206.38,36.43861046]
[1731274940152,23.776884,206.42,206.38,41.28401046]
[1731274941652,23.776884,206.48,206.4,53.39571046]
[1731274942047,60.21549446,206.48,206.4,53.39571046]
[1731274942250,23.776884,206.48,206.4,53.39571046]
[1731274942460,23.776884,206.48,206.42,36.43861046]
[1731274942952,6.0342,206.49,206.42,36.43861046]
[1731274943151,36.43861046,206.52,206.44,36.43861046]
[1731274943346,16.5433,206.53,206.46,36.43861046]
[1731274943557,41.28041046,206.54,206.46,36.43861046]
[1731274944162,41.28041046,206.54,206.46,41.28201046]
[1731274944366,6.0342,206.55,206.46,41.28201046]
[1731274944559,20.0,206.54,206.46,41.28201046]
[1731274945363,20.0,206.52,206.46,41.28201046]
[1731274945673,23.776884,206.51,206.46,41.28201046]
[1731274946751,36.43861046,206.5,206.41,36.43861046]
[1731274947055,36.43861046,206.46,206.4,16.957]
[1731274947258,36.43861046,206.42,206.34,12.1158]
[1731274947471,36.43861046,206.4,206.34,16.9621]
[1731274947680,36.43861046,206.4,206.31,36.43861046]
[1731274948176,43.776884,206.39,206.31,36.43861046]
[1731274948481,36.43861046,206.38,206.31,36.43861046]
[1731274948977,36.43861046,206.38,206.31,4.8469]
[1731274950869,43.776884,206.39,206.31,41.28551046]
[1731274951075,20.0,206.39,206.35,36.43861046]
[1731274951256,43.776884,206.43,206.35,36.43861046]
[1731274951456,23.776884,206.43,206.35,36.43861046]
[1731274952255,36.43861046,206.42,206.35,36.43861046]
[1731274953261,36.43861046,206.44,206.36,16.9606]
[1731274953475,23.776884,206.46,206.39,36.43861046]
[1731274953970,60.21549446,206.46,206.39,36.43861046]
[1731274954874,36.43861046,206.44,206.36,12.1147]
[1731274955169,36.43861046,206.38,206.31,12.1171]
[1731274955371,36.43861046,206.36,206.27,36.43861046]
[1731274955867,36.43861046,206.34,206.26,12.1202]
[1731274956574,36.43861046,206.34,206.27,36.43861046]
[1731274956874,36.43861046,206.36,206.28,16.9671]
[1731274957375,36.43861046,206.34,206.28,16.9671]
[1731274957565,36.43861046,206.36,206.28,16.9671]
[1731274959502,36.43861046,206.38,206.31,36.43861046]
[1731274959773,36.43861046,206.36,206.28,16.9671]
[1731274960078,36.43861046,206.32,206.28,16.9671]
[1731274961077,36.43861046,206.32,206.28,12.1194]
[1731274961281,36.43861046,206.32,206.28,16.9671]
[1731274961458,36.43861046,206.32,206.28,12.1194]
[1731274961988,20.0,206.35,206.28,48.55801046]
[1731274962280,23.776884,206.37,206.3,36.43861046]
[1731274962874,36.43861046,206.34,206.28,12.1194]
[1731274965365,36.43861046,206.34,206.22,24.2457]
[1731274965366,20.0,206.28,206.15,22.5514]
[1731274965560,36.43861046,206.23,206.15,58.99001046]
[1731274965874,36.43861046,206.25,206.18,36.43861046]
[1731274966088,36.43861046,206.27,206.2,36.43861046]
[1731274966258,23.776884,206.28,206.2,36.43861046]
[1731274967009,41.28571046,206.31,206.24,36.43861046]
[1731274967170,56.43861046,206.33,206.26,36.43861046]
[1731274967374,36.43861046,206.33,206.26,36.43861046]
[1731274968068,36.43861046,206.35,206.26,36.43861046]
[1731274968473,4.9456,206.37,206.26,36.43861046]
[1731274968474,36.43861046,206.33,206.26,36.43861046]
[1731274968665,23.776884,206.32,206.26,36.43861046]
[1731274968870,36.43861046,206.29,206.2,48.56251046]
[1731274969064,36.43861046,206.27,206.2,16.9735]
[1731274969286,36.43861046,206.25,206.16,36.43861046]
[1731274970273,36.43861046,206.23,206.16,36.43861046]
[1731274970458,20.0,206.22,206.16,4.8505]
[1731274971165,43.776884,206.26,206.2,36.43861046]
[1731274971567,43.776884,206.26,206.16,16.977]
[1731274971568,0.1,206.37,206.23,36.43861046]
[1731274971761,36.43861046,206.28,206.19,36.43861046]
[1731274971975,36.43861046,206.24,206.17,36.43861046]
[1731274972157,23.776884,206.27,206.17,36.43861046]
[1731274972158,36.43861046,206.26,206.17,36.43861046]
[1731274972677,36.43861046,206.24,206.17,36.43861046]
[1731274972870,36.43861046,206.24,206.17,41.28881046]
[1731274973076,36.43861046,206.24,206.17,53.41471046]
[1731274973668,23.776884,206.27,206.2,36.43861046]
[1731274973989,20.0,206.26,206.2,36.43861046]
[1731274974504,20.0,206.26,206.18,36.43861046]
[1731274974986,20.0,206.26,206.19,16.9745]
[1731274975376,23.776884,206.27,206.2,36.43861046]
[1731274975677,4.8474,206.3,206.22,36.43861046]
[1731274975678,23.776884,206.29,206.22,36.43861046]
[1731274975879,36.43861046,206.28,206.2,36.43861046]
[1731274976380,41.28451046,206.36,206.26,36.43861046]
[1731274976564,41.28451046,206.36,206.28,36.43861046]
[1731274976873,41.28451046,206.36,206.26,41.28671046]
[1731274977680,20.0,206.33,206.26,53.40731046]
[1731274977889,23.776884,206.32,206.26,53.40731046]
[1731274978068,41.28451046,206.36,206.29,36.43861046]
[1731274978269,20.0,206.35,206.29,36.43861046]
[1731274978575,41.28401046,206.38,206.29,36.43861046]
[1731274979180,41.28401046,206.38,206.3,4.8473]
[1731274979498,23.776884,206.37,206.31,36.43861046]
[1731274979662,34.7214,206.45,206.3,16.9655]
[1731274979663,36.43861046,206.42,206.33,36.43861046]
[1731274980071,41.896319,206.45,206.3,16.9655]
[1731274980072,36.43861046,206.44,206.35,36.43861046]
[1731274980275,39.8333,206.51,206.3,53.40411046]
[1731274980276,6.4911,206.57,206.43,36.43861046]
[1731274980466,6.4911,206.57,206.4,36.43861046]
[1731274980467,19.379116,206.51,206.48,36.43861046]
[1731274980686,36.43861046,206.57,206.5,36.43861046]
[1731274980983,36.43861046,206.55,206.48,36.43861046]
[1731274981163,36.43861046,206.59,206.5,36.43861046]
[1731274981886,36.43861046,206.57,206.5,36.43861046]
[1731274982068,36.43861046,206.59,206.5,36.43861046]
[1731274982481,36.43861046,206.61,206.52,36.43861046]
[1731274982793,36.43861046,206.61,206.54,36.43861046]
[1731274982966,36.43861046,206.61,206.55,4.8414]
[1731274983163,36.43861046,206.63,206.56,36.43861046]
[1731274983586,36.43861046,206.63,206.55,4.8414]
[1731274984295,36.43861046,206.61,206.54,36.43861046]
[1731274984468,20.0,206.6,206.54,36.43861046]
[1731274984872,20.0,206.62,206.54,36.43861046]
[1731274985173,36.43861046,206.71,206.6,36.43861046]
[1731274985379,11.3284,206.73,206.56,12.1026]
[1731274985380,36.43861046,206.69,206.62,36.43861046]
[1731274985577,36.43861046,206.69,206.6,36.43861046]
[1731274985979,36.43861046,206.71,206.64,36.43861046]
[1731274986475,36.43861046,206.71,206.54,0.2]
[1731274986476,36.43861046,206.71,206.62,36.43861046]
[1731274986896,36.43861046,206.69,206.6,36.43861046]
[1731274987193,36.43861046,206.65,206.58,36.43861046]
[1731274987386,20.0,206.64,206.58,36.43861046]
[1731274987776,20.0,206.64,206.56,36.43861046]
[1731274987978,20.0,206.64,206.58,36.43861046]
[1731274988497,20.0,206.64,206.57,4.8408]
[1731274989094,20.0,206.68,206.62,36.43861046]
[1731274989686,36.43861046,206.69,206.62,36.43861046]
[1731274990898,36.43861046,206.69,206.61,4.8399]
[1731274991592,20.0,206.7,206.62,36.43861046]
[1731274992686,36.43861046,206.69,206.63,4.8395]
[1731274992899,20.0,206.7,206.63,4.8395]
[1731274993193,36.43861046,206.73,206.66,36.43861046]
[1731274993397,36.43861046,206.73,206.64,36.43861046]
[1731274994294,36.43861046,206.73,206.65,4.839]
[1731274994880,36.43861046,206.7,206.63,12.0989]
[1731274995097,36.43861046,206.7,206.63,16.9384]
[1731274996275,36.43861046,206.72,206.64,36.43861046]
[1731274996780,36.43861046,206.72,206.64,41.27771046]
[1731274996990,36.43861046,206.72,206.55,30.13675326]
[1731274996991,36.43861046,206.68,206.6,41.27871046]
[1731274997195,36.43861046,206.66,206.58,53.38081046]
[1731274998100,20.0,206.67,206.58,53.38081046]
[1731274998699,36.43861046,206.68,206.6,36.43861046]
[1731274999399,36.43861046,206.66,206.58,53.38081046]
[1731274999704,36.43861046,206.66,206.52,12.1048]
[1731274999705,20.0,206.59,206.52,12.1048]
[1731274999893,36.43861046,206.57,206.48,36.43861046]
[1731275000078,56.43861046,206.59,206.5,36.43861046]
[1731275000284,36.43861046,206.59,206.5,36.43861046]
[1731275000805,36.43861046,206.61,206.53,16.9466]
[1731275001106,36.43861046,206.65,206.57,36.43861046]
[1731275001307,23.776884,206.64,206.57,36.43861046]
[1731275001509,36.43861046,206.68,206.59,36.43861046]
[1731275001810,23.776884,206.67,206.59,36.43861046]
[1731275002396,36.43861046,206.68,206.59,36.43861046]
[1731275002912,41.27701046,206.68,206.6,4.8402]
[1731275003082,36.43861046,206.64,206.58,16.9421]
[1731275004105,36.43861046,206.64,206.58,12.1016]
[1731275004306,36.43861046,206.64,206.55,36.43861046]
[1731275004307,36.43861046,206.62,206.54,27.2318]
[1731275004612,36.43861046,206.62,206.55,36.43861046]
[1731275005506,36.43861046,206.62,206.56,4.8412]
[1731275006010,36.43861046,206.7,206.56,4.8412]
[1731275006011,36.43861046,206.6,206.56,4.8412]
[1731275006505,4.8396,206.63,206.54,12.1041]
[1731275006506,36.43861046,206.58,206.54,12.1041]
[1731275006707,36.43861046,206.58,206.49,54.70101046]
[1731275006896,36.43861046,206.56,206.49,54.70101046]
[1731275007209,36.43861046,206.56,206.51,4.8422]
[1731275007791,36.43861046,206.56,206.5,12.1065]
[1731275008013,36.43861046,206.54,206.5,12.1065]
[1731275008404,36.43861046,206.58,206.5,16.9491]
[1731275010103,36.43861046,206.62,206.54,36.43861046]
[1731275011604,41.27841046,206.62,206.54,36.43861046]
[1731275011816,36.43861046,206.58,206.5,53.38771046]
[1731275012110,36.43861046,206.6,206.53,4.8419]
[1731275012690,36.43861046,206.62,206.54,36.43861046]
[1731275013089,36.43861046,206.62,206.53,16.9466]
[1731275013297,0.1,206.72,206.58,36.43861046]
[1731275013298,36.43861046,206.66,206.58,36.43861046]
[1731275014108,36.43861046,206.7,206.63,16.9384]
[1731275014424,36.43861046,206.76,206.66,36.43861046]
[1731275014591,36.43861046,206.76,206.68,36.43861046]
[1731275014995,36.43861046,206.74,206.66,36.43861046]
[1731275015492,36.43861046,206.72,206.64,52.82831046]
[1731275016220,36.43861046,206.68,206.63,12.0989]
[1731275016518,36.43861046,206.66,206.58,52.82831046]
[1731275016698,36.43861046,206.66,206.58,69.77071046]
[1731275017218,36.43861046,206.66,206.6,36.43861046]
[1731275017513,36.43861046,206.66,206.58,69.77071046]
[1731275019820,36.43861046,206.7,206.62,36.43861046]
[1731275020024,36.43861046,206.68,206.6,36.43861046]
[1731275020396,36.43861046,206.68,206.61,16.94]
[1731275020916,36.43861046,206.66,206.58,4.8406]
[1731275021224,36.43861046,206.64,206.58,4.8406]
[1731275021514,36.43861046,206.66,206.58,41.27921046]
[1731275022704,36.43861046,206.66,206.58,53.38101046]
[1731275024701,36.43861046,206.66,206.58,16.9424]
[1731275025813,36.43861046,206.64,206.58,16.9424]
[1731275026505,36.43861046,206.59,206.49,5.92955326]
[1731275026705,36.43861046,206.6,206.42,6.5001]
[1731275026706,36.43861046,206.5,206.42,6.5001]
[1731275026906,20.0,206.49,206.4,36.43861046]
[1731275027099,20.0,206.49,206.3,36.43861046]
[1731275027100,36.43861046,206.44,206.32,4.8468]
[1731275027419,36.43861046,206.41,206.24,8.061254]
[1731275027594,36.43861046,206.41,206.31,36.43861046]
[1731275028120,36.43861046,206.41,206.33,36.43861046]
[1731275028324,36.43861046,206.38,206.29,16.966]
[1731275028799,36.43861046,206.36,206.29,12.1186]
[1731275029623,36.43861046,206.3,206.23,48.56061046]
[1731275029795,36.43861046,206.32,206.25,36.43861046]
[1731275030116,36.43861046,206.3,206.24,12.1217]
[1731275030293,36.43861046,206.31,206.24,16.9704]
[1731275030818,36.43861046,206.26,206.19,4.8498]
[1731275031118,36.43861046,206.3,206.19,4.8498]
[1731275031119,36.43861046,206.21,206.19,4.8498]
[1731275031297,36.43861046,206.3,206.19,4.8498]
[1731275031500,36.43861046,206.24,206.19,16.9745]
[1731275031796,36.43861046,206.24,206.19,16.4745]
[1731275033118,36.43861046,206.22,206.19,16.4745]
[1731275033503,36.43861046,206.22,206.19,12.1247]
[1731275034202,36.43861046,206.2,206.17,4.8502]
[1731275034613,36.43861046,206.2,206.15,4.8507]
[1731275036603,36.43861046,206.3,206.15,41.28931046]
[1731275036604,36.43861046,206.22,206.15,41.28931046]
[1731275037525,36.43861046,206.21,206.15,4.8507]
[1731275037831,36.43861046,206.22,206.15,16.9777]
[1731275038207,36.43861046,206.19,206.15,12.127]
[1731275038511,36.43861046,206.24,206.16,36.43861046]
[1731275039815,36.43861046,206.21,206.15,12.127]
[1731275040022,36.43861046,206.21,206.15,16.9778]
[1731275041234,36.43861046,206.23,206.15,53.41641046]
[1731275041408,36.43861046,206.24,206.17,36.43861046]
[1731275041608,36.43861046,206.24,206.15,16.9778]
[1731275041609,36.43861046,206.22,206.15,53.41641046]
[1731275041809,36.43861046,206.21,206.15,16.9778]
[1731275042320,36.43861046,206.21,206.15,53.41641046]
[1731275042713,36.43861046,206.23,206.15,53.41641046]
[1731275043033,36.43861046,206.24,206.17,36.43861046]
[1731275043232,4.8481,206.27,206.11,6.0476]
[1731275043233,36.43861046,206.21,206.13,36.43861046]
[1731275043413,36.43861046,206.21,206.13,53.41791046]
[1731275043612,56.43861046,206.23,206.15,36.43861046]
[1731275044120,56.43861046,206.23,206.13,16.9793]
[1731275044121,36.43861046,206.28,206.21,36.43861046]
[1731275044508,41.28641046,206.28,206.21,36.43861046]
[1731275044723,36.43861046,206.29,206.21,36.43861046]
[1731275044910,41.28621046,206.29,206.21,36.43861046]
[1731275045421,36.43861046,206.28,206.21,36.43861046]
[1731275045832,8.00367827,206.34,206.17,12.1254]
[1731275045833,36.43861046,206.34,206.27,36.43861046]
[1731275046026,36.43861046,206.33,206.25,36.43861046]
[1731275046329,36.43861046,206.32,206.24,36.43861046]
[1731275046536,36.43861046,206.32,206.24,41.28721046]
[1731275046537,41.28541046,206.32,206.24,41.28721046]
[1731275046732,36.43861046,206.32,206.25,36.43861046]
[1731275046931,36.43861046,206.36,206.29,36.43861046]
[1731275047114,36.43861046,206.37,206.3,36.43861046]
[1731275047313,36.43861046,206.38,206.31,36.43861046]
[1731275047516,41.28341046,206.41,206.34,36.43861046]
[1731275047930,4.8448,206.41,206.36,36.43861046]
[1731275048236,4.8448,206.41,206.3,36.43861046]
[1731275048237,4.8448,206.41,206.35,36.43861046]
[1731275048623,47.38031046,206.47,206.4,36.43861046]
[1731275048824,4.8433,206.47,206.4,36.43861046]
[1731275049034,36.43861046,206.48,206.4,36.43861046]
[1731275049549,4.843,206.49,206.34,12.1156]
[1731275049550,41.28161046,206.49,206.42,36.43861046]
[1731275049927,36.43861046,206.5,206.42,36.43861046]
[1731275050114,36.43861046,206.49,206.42,36.43861046]
[1731275050315,36.43861046,206.49,206.38,12.1131]
[1731275050316,36.43861046,206.52,206.45,36.43861046]
[1731275050620,36.43861046,206.55,206.48,36.43861046]
[1731275050823,36.43861046,206.57,206.5,36.43861046]
[1731275051828,36.43861046,206.56,206.49,36.43861046]
[1731275052231,36.43861046,206.57,206.49,36.43861046]
[1731275052428,4.8409,206.58,206.49,36.43861046]
[1731275052429,56.43861046,206.56,206.49,36.43861046]
[1731275052736,36.43861046,206.55,206.48,41.28151046]
[1731275053236,20.0,206.56,206.48,41.28151046]
[1731275053237,56.43861046,206.56,206.49,36.43861046]
[1731275054127,36.43861046,206.55,206.48,36.43861046]
[1731275054331,36.43861046,206.53,206.46,48.54691046]
[1731275054635,36.43861046,206.51,206.46,12.1083]
[1731275054939,36.43861046,206.5,206.43,36.43861046]
[1731275055141,20.0,206.52,206.45,36.43861046]
[1731275055731,56.43861046,206.52,206.44,36.43861046]
[1731275055927,36.43861046,206.51,206.44,36.43861046]
[1731275056143,36.43861046,206.51,206.45,4.8437]
[1731275056644,36.43861046,206.52,206.45,4.8437]
[1731275056823,36.43861046,206.56,206.48,36.43861046]
[1731275057026,36.43861046,206.57,206.49,56.43861046]
[1731275057219,36.43861046,206.6,206.53,36.43861046]
[1731275058136,36.43861046,206.59,206.52,36.43861046]
[1731275058321,36.43861046,206.58,206.51,36.43861046]
[1731275058945,4.839,206.65,206.5,12.106]
[1731275058946,36.43861046,206.54,206.5,12.106]
[1731275060534,36.43861046,206.54,206.4,44.31866633]
[1731275060535,36.43861046,206.56,206.48,36.43861046]
[1731275061039,4.8393,206.64,206.53,36.43861046]
[1731275061243,36.43861046,206.59,206.52,36.43861046]
[1731275061424,36.43861046,206.58,206.5,36.43861046]
[1731275061617,36.43861046,206.59,206.51,36.43861046]
[1731275061820,36.43861046,206.57,206.51,36.43861046]
[1731275062028,36.43861046,206.57,206.42,23.776884]
[1731275062029,36.43861046,206.56,206.41,65.4037]
[1731275062324,36.43861046,206.48,206.41,53.39511046]
[1731275062632,36.43861046,206.46,206.41,16.9565]
[1731275063043,36.43861046,206.42,206.37,4.8455]
[1731275063349,4.8429,206.49,206.37,4.8455]
[1731275063350,36.43861046,206.46,206.37,53.39821046]
[1731275063528,36.43861046,206.44,206.37,53.39821046]
[1731275063734,36.43861046,206.44,206.37,16.9596]
[1731275064583,36.43861046,206.48,206.4,36.43861046]
[1731275064720,36.43861046,206.5,206.42,36.43861046]
[1731275065471,5.91925561,206.74,206.58,20.0]
[1731275065640,36.53861046,206.8,206.67,36.43861046]
[1731275065827,36.43861046,206.8,206.69,0.1]
[1731275066021,0.1,206.85,206.72,36.43861046]
[1731275066022,36.43861046,206.82,206.72,36.43861046]
[1731275066225,0.1,206.81,206.72,36.43861046]
[1731275066443,36.43861046,206.8,206.72,36.43861046]
[1731275067032,20.0,206.79,206.72,36.43861046]
[1731275068159,20.0,206.75,206.68,36.43861046]
[1731275068769,20.0,206.75,206.66,36.43861046]
[1731275070051,60.21549446,206.74,206.66,36.43861046]
[1731275070256,20.0,206.73,206.66,36.43861046]
[1731275070854,36.43861046,206.72,206.64,36.43861046]
[1731275071240,36.43861046,206.72,206.64,36.53861046]
[1731275071844,36.43861046,206.72,206.64,36.43861046]
[1731275072837,41.27621046,206.72,206.64,36.43861046]
[1731275073470,36.43861046,206.72,206.64,36.43861046]
[1731275074345,41.27611046,206.72,206.64,36.43861046]
[1731275078057,36.43861046,206.71,206.64,36.43861046]
[1731275078262,23.776884,206.7,206.63,41.27801046]
[1731275078464,23.776884,206.7,206.64,36.43861046]
[1731275078668,60.21549446,206.73,206.65,36.43861046]
[1731275078966,36.43861046,206.72,206.65,36.43861046]
[1731275079265,23.776884,206.73,206.65,36.43861046]
[1731275079266,60.21549446,206.73,206.65,36.43861046]
[1731275079590,60.21549446,206.73,206.63,17.0383]
[1731275079591,23.776884,206.73,206.66,36.43861046]
[1731275080061,4.8374,206.72,206.66,36.43861046]
[1731275082972,4.837,206.74,206.7,36.43861046]
[1731275083262,12.84943919,206.76,206.7,36.43861046]
[1731275083856,4.8366,206.76,206.7,36.43861046]
[1731275084073,41.27521046,206.76,206.68,36.43861046]
[1731275084247,23.776884,206.75,206.68,36.43861046]
[1731275085566,60.21549446,206.73,206.66,12.0971]
[1731275085948,60.21549446,206.73,206.65,36.43861046]
[1731275086147,36.43861046,206.71,206.63,36.43861046]
[1731275087351,4.8381,206.69,206.63,36.43861046]
[1731275087867,36.43861046,206.73,206.65,36.43861046]
[1731275088075,23.776884,206.72,206.67,36.43861046]
[1731275088373,23.902374,206.74,206.67,36.43861046]
[1731275089163,4.8372,206.73,206.67,36.43861046]
[1731275090168,41.27581046,206.73,206.65,36.43861046]
[1731275090768,36.43861046,206.71,206.63,48.53751046]
[1731275090955,36.43861046,206.71,206.63,53.47701046]
[1731275091156,41.27631046,206.71,206.63,53.47701046]
[1731275091372,4.8377,206.71,206.65,36.43861046]